Cogmind - Beta 16 @@@ ROGUE MODE // 2025.12.13 @ 04:37:57 Player: Red Box Result: Destroyed by EM-PTY(l) with Phasing Sabre Performance ------------- Evolutions (5) 2500 Regions Visited (14) 2800 Robots Destroyed (203) 1015 Value Destroyed (8997) 8997 Prototype IDs (55) 1100 Alien Tech Used (0) 0 Bonus (7253) 7253 TOTAL SCORE: 23665 Bonus ------- High Alert Combat Kills 1199 Follower Combat Kills 2349 Network Hubs Disabled 200 Registered with UFD 300 Met Optimus in HQ 500 Met Warlord at Base 500 MAIN.C Attacked Warlord 500 Warlord Defense Kills 948 Built Enhanced Grunts 300 A7 Reached Mainframe 300 Met R17 at Cetus 500 Friendly Fire -343 Cogmind --------- Core Integrity 0/1000 Matter 233/300 Energy 113/340 System Corruption 7% Temperature Cool (0) Movement Core (1450) Ox28 Location -4/Proximity Caves Parts ------- > --- POWER (1) -------- Graviton Reactor > --- PROPULSION (3) --- Centrium Heavy Treads > --- UTILITY (10) ----- Experimental Cooling System High-capacity Storage Unit Experimental Sensor Array Advanced Signal Interpreter Improved Target Analyzer Expert System (Operator) Experimental Phase Shifter Centrium Medium Armor Plating Thermal Barrier Advanced System Shield > --- WEAPON (3) ------- Vortex Cannon Helical Railgun > --- INVENTORY (20) --- Micro Fission Core Quantum Reactor Vortex Chain Reactor Advanced Energy Well (500) Matter Compressor (0) 0b10 Decoder Chip [Scout] Experimental Target Analyzer Experimental Core Analyzer Centrium Medium Armor Plating Ghost Barrier Authchip [Processor] Advanced Trap Extractor (1/8 Vortex) Mapping Drone Bay (3/3) Vortex Cannon (26) Vortex Driver (30) Improved Remote Datajack Thermal Lance Peak State ------------ > --- POWER ------------ Graviton Reactor > --- PROPULSION ------- Armored Treads Centrium Heavy Treads > --- UTILITY ---------- High-capacity Storage Unit Experimental Sensor Array Advanced Signal Interpreter Improved Target Analyzer Expert System Experimental Phase Shifter Centrium Medium Armor Plating Thermal Barrier Advanced System Shield Mapping Drone Bay > --- WEAPON ----------- Vortex Cannon Helical Railgun Thermal Lance > --- INVENTORY -------- Micro Fission Core Quantum Reactor Vortex Chain Reactor Experimental Cooling System Advanced Energy Well Matter Compressor 0b10 Decoder Chip [Scout] Experimental Target Analyzer Experimental Core Analyzer Centrium Medium Armor Plating Ghost Barrier Authchip [Processor] Advanced Trap Extractor Vortex Cannon Vortex Driver Enhanced Coil Gun Helical Railgun Improved Remote Datajack [Rating: 139] Favorites ----------- Power Graviton Reactor Engine Ion Engine Power Core Meta Core Reactor Graviton Reactor Propulsion Compact Wheel Treads Light Treads Leg Aluminum Leg Wheel Compact Wheel Utility High-capacity Storage Unit Device Experimental Sensor Array Storage High-capacity Storage Unit Processor Advanced Signal Interpreter Hackware Advanced System Shield Protection Centrium Medium Armor Plating Weapon Enhanced Gauss Cannon Energy Gun Heavy EM Pulse Gun Energy Cannon Subdweller Beam Cannon Ballistic Gun Subdweller Machine Gun Ballistic Cannon Enhanced Gauss Cannon Launcher Grenade Launcher Special Weapon Makeshift Laser Shovel Impact Weapon Hammer Piercing Weapon Thermal Lance Special Melee Weapon Advanced Datajack Build | -11 -10 -10 -10 -9 -6 -6 -6 -6 -6 -5 -5 -5 -5 -4 ------- Run | Yrd Mat Min Sub Scr Fac Ext Cet Arc Hub Fac Upp Upp War Pro Slots Evolved 10 | . . . . . 8 . . . . 2 . . . . Power . | . . . . . . . . . . . . . . . Propulsion 1 | . . . . . . . . . . 1 . . . . Utility 8 | . . . . . 7 . . . . 1 . . . . Weapon 1 | . . . . . 1 . . . . . . . . . Parts Attached 203 | 8 5 . 16 22 43 9 9 8 7 41 7 14 11 3 Power 13 | 1 1 . 2 4 1 . 1 . . . 1 1 1 . Engine 8 | 1 1 . 2 3 . . . . . . 1 . . . Core 2 | . . . . . . . 1 . . . . 1 . . Reactor 3 | . . . . 1 1 . . . . . . . 1 . Propulsion 35 | 2 . . 4 4 2 . . 1 1 13 1 4 1 2 Treads 17 | . . . 2 3 1 . . 1 . 4 . 4 1 1 Leg 9 | 2 . . . . . . . . . 5 1 . . 1 Wheel 9 | . . . 2 1 1 . . . 1 4 . . . . Hover . | . . . . . . . . . . . . . . . Flight . | . . . . . . . . . . . . . . . Utility 88 | 2 3 . 4 3 25 5 4 4 5 17 3 8 5 . Device 48 | 1 1 . . 1 13 4 1 3 2 10 2 6 4 . Storage 9 | 1 2 . 1 . 1 . . . 1 1 . 1 1 . Processor 8 | . . . 1 . 3 . 1 . 2 1 . . . . Hackware 7 | . . . . . 4 . . 1 . 1 . 1 . . Protection 16 | . . . 2 2 4 1 2 . . 4 1 . . . Artifact . | . . . . . . . . . . . . . . . Weapon 67 | 3 1 . 6 11 15 4 4 3 1 11 2 1 4 1 Energy Gun 15 | 2 . . 1 3 2 1 . 1 . 4 . . 1 . Energy Cannon 10 | . . . 3 1 1 . . . 1 2 . . 1 1 Ballistic Gun 20 | 1 . . 1 6 4 . 3 1 . 2 1 . 1 . Ballistic Cannon 13 | . . . . . 4 3 1 . . 3 1 . 1 . Launcher 4 | . 1 . . 1 2 . . . . . . . . . Special Weapon 1 | . . . . . . . . . . . . 1 . . Impact Weapon 1 | . . . 1 . . . . . . . . . . . Slashing Weapon . | . . . . . . . . . . . . . . . Piercing Weapon 1 | . . . . . 1 . . . . . . . . . Special Melee Weapon 2 | . . . . . 1 . . 1 . . . . . . Unidentified Prototypes 21 | . . . . 4 3 . 2 2 1 1 1 1 5 1 Corrupted Parts 9 | . . . . 2 . . 2 2 2 . . . 1 . System Corruption 38 | . . . . 2 . . 13 15 6 . . . 2 . Parts Lost 53 | . . . 3 . 3 6 . . 3 20 2 10 5 1 Power 4 | . . . 2 . . . . . . . 1 1 . . Propulsion 15 | . . . 1 . . . . . . 7 1 4 2 . Utility 18 | . . . . . 3 3 . . 1 6 . 4 1 . Weapon 16 | . . . . . . 3 . . 2 7 . 1 2 1 Highest Loss Streak 10 | . . . 1 . 1 3 . . 3 7 1 10 3 1 To Critical Strikes . | . . . . . . . . . . . . . . . Average Backups 17 | 4 10 14 16 19 18 18 18 18 17 18 18 18 19 16 Power 1 | . . . . . . 1 2 3 3 2 1 1 1 2 Propulsion 2 | 3 4 4 3 1 . 1 1 2 1 1 3 . . . Utility 7 | . 2 4 5 10 9 8 8 7 7 7 6 7 9 10 Weapon 6 | . 4 6 7 5 7 7 6 6 5 7 7 8 5 4 Tool/Special . | . . . . . . . . . . . . . . . Unused Backups 48 | . 2 1 6 12 2 . 1 . . 2 3 6 3 10 Power 7 | . 1 . . 2 . . . . . . . 2 . 2 Propulsion 5 | . . 1 . 1 . . 1 . . . 1 1 . . Utility 16 | . . . 1 4 1 . . . . 2 . . 3 5 Weapon 19 | . 1 . 5 5 1 . . . . . 2 3 . 2 Tool/Special 1 | . . . . . . . . . . . . . . 1 Average Slot Usage (%) 94 | . 99 100 93 99 96 91 82 86 87 94 98 91 92 91 Engine 5 | . 14 14 8 13 . . . . . . 4 . . . Reactor 1 | . . . . . 5 6 1 . . 1 . 1 4 5 Treads 6 | . . . 11 6 3 . . . . 8 . 8 10 8 Leg 5 | . 28 28 4 . . . . . . 3 17 1 . . Wheel 7 | . . . 11 21 6 6 5 4 4 3 . . . . Device 15 | . 14 14 11 3 25 25 15 11 14 15 16 26 23 23 Storage 9 | . 14 14 14 14 6 6 5 5 5 5 5 5 5 5 Processor 8 | . . . . . 12 13 17 16 17 17 17 17 17 17 Hackware 3 | . . . . . 7 6 5 3 5 8 5 5 5 5 Protection 5 | . . . 2 10 6 5 7 11 6 6 10 . 4 4 Energy Gun 3 | . 11 . 2 14 1 2 . 2 . 3 . . . . Energy Cannon 4 | . . . 10 . 2 1 . . . 2 5 4 2 4 Ballistic Gun 7 | . 14 14 7 11 6 . 8 18 21 7 . . 5 10 Ballistic Cannon 3 | . . . . . 8 13 10 . . . 11 10 4 . Impact Weapon 2 | . . . 6 1 . . . . . . . . . . Peak Build Rating 139 | 9 10 10 16 44 94 94 126 130 124 136 111 116 137 139 Average Rating 62 | 4 9 10 13 23 84 89 104 119 118 120 105 111 125 134 On Entrance 70 | . 9 10 10 16 41 89 90 126 121 124 97 106 113 104 Avg Prop Armor Cover (%) 11 | . . . 15 12 7 . . . . 5 . 4 . . Naked Turns . | . . . . . . . . . . . . . . . Heaviest Build 122 | 15 31 31 58 71 110 122 121 89 90 101 96 97 104 97 Greatest Support 133 | 20 20 20 20 26 28 28 28 28 80 133 60 108 108 100 Greatest Overweight (x) 9 | 2 1 1 3 4 6 4 4 3 3 9 1 2 1 1 Average Overweight (x) 2 | . . 1 2 2 4 3 3 2 1 1 1 . . . Largest Inventory Capacity 20 | 8 15 15 20 20 20 20 20 20 20 20 20 20 20 20 Average Capacity 18 | 7 12 15 17 20 20 20 20 20 20 20 20 20 20 20 Most Carried 20 | 7 15 15 20 20 20 20 20 20 20 20 20 20 20 19 Average Carried 18 | 4 11 14 17 19 19 19 19 19 19 19 19 18 19 17 Final Capacity 20 | 8 15 15 20 20 20 20 20 20 20 20 20 20 20 20 Final Carried 20 | 7 15 15 20 20 20 20 20 20 18 19 20 20 20 18 Class Distribution -------------------- 49% | Mutant 9% | Scavenger-Tank 4% | Hacker-Skirmisher 4% | Scavenger-Skirmisher 4% | Commander-Tank 4% | Derelict-Gunner 3% | Skirmisher 3% | Commander-Skirmisher Dominant Class ---------------- Mutant | -10/Materials Mutant | -10/Mines Mutant | -10/Subcaves Mutant | -9/Scraptown Hacker-Skirmisher | -6/Factory Commander-Skirmisher | -6/Extension Commander-Gunner | -6/Cetus Commander-Tank | -6/Archives Commander-Skirmisher | -6/Hub_04(d) Hacker-Tank | -5/Factory Scavenger-Tank | -5/Upper Caves Derelict-Gunner | -5/Upper Caves Commander-Mutant | -5/Warlord Scavenger-Tank | -4/Proximity Caves Resources | -11 -10 -10 -10 -9 -6 -6 -6 -6 -6 -5 -5 -5 -5 -4 ----------- Run | Yrd Mat Min Sub Scr Fac Ext Cet Arc Hub Fac Upp Upp War Pro Matter Collected 9530 | 224 268 . 653 735 1344 1429 429 425 338 2129 423 679 163 291 Remotely . | . . . . . . . . . . . . . . . Salvage Created 8540 | 116 444 . 635 434 925 1005 25 357 360 3327 140 488 149 135 Parts 428 | 14 30 . 35 19 56 29 3 26 11 170 9 21 2 3 Haulers Intercepted 3 | . 2 . . . 1 . . . . . . . . . Recyclers Shooed 4 | . . . . . 1 . . . . 3 . . . . Parts Field Recycled . | . . . . . . . . . . . . . . . Retrieved Matter . | . . . . . . . . . . . . . . . Parts Self-Destructed 44 | . . . 12 . . . . . . . 10 21 . 1 Prevented 4 | . . . . . . . . . . . . 4 . . Parts Restored 4 | . . . . . 2 . . . . 1 1 . . . Broken 4 | . . . . . 2 . . . . 1 1 . . . Kills | -11 -10 -10 -10 -9 -6 -6 -6 -6 -6 -5 -5 -5 -5 -4 ------- Run | Yrd Mat Min Sub Scr Fac Ext Cet Arc Hub Fac Upp Upp War Pro Combat Hostiles Destroyed 148 | . 8 . 13 9 21 17 . 1 3 50 2 16 5 3 Melee 5 | . . . . . 3 . . . . 2 . . . . Guns 49 | . 5 . 2 3 7 1 . 1 3 27 . . . . Cannons 54 | . . . 8 . 10 10 . . . 10 2 7 4 3 AOE 37 | . 3 . 1 6 1 6 . . . 11 . 9 . . Classes Destroyed 28 | 2 4 . 3 5 3 4 . . . 3 1 1 2 . Worker 13 | . . . . . 6 . . . 1 6 . . . . Builder 4 | . . . . . . 1 . . 1 2 . . . . Tunneler 4 | 3 . . . . . . . . . 1 . . . . Hauler 3 | . 2 . . . 1 . . . . . . . . . Recycler 5 | 1 1 . . . . . . . 1 2 . . . . Minesweeper 2 | . . . . . . . . . . . . 2 . . Mechanic 1 | . . . . . . . . . . 1 . . . . Operator 9 | . . . . . . 1 . 8 . . . . . . Watcher 13 | . 2 . . . . 3 2 . . 6 . . . . Swarmer 19 | . 3 . . . 4 . . . . 9 1 2 . . Saboteur 1 | . . . . . . . . . . 1 . . . . Grunt 44 | . 5 . . . 6 10 . . 2 12 . 8 1 . Brawler 3 | . . . . . . . . . . 2 . . 1 . Duelist 8 | . . . . . . 1 . . . 3 . 4 . . Protector 2 | . . . . . . 1 . . . . . 1 . . Sentry 12 | . . . 1 . 2 4 . 1 . 2 1 1 . . Specialist 1 | . . . . . . 1 . . . . . . . . Hunter 9 | . . . . . 2 . . . . 7 . . . . Programmer 22 | . . . . . 7 . . . . 14 . . . 1 Lightning 1 | . . . . . . . . . 1 . . . . . Striker 1 | . . . . . . . . . . . . . 1 . Executioner 2 | . . . . . . . . . . . . . 2 . Artisan 1 | . . . 1 . . . . . . . . . . . Subdweller 12 | . . . 12 . . . . . . . . . . . Federalist 2 | . . . . 2 . . . . . . . . . . Ranger 2 | . . . . 2 . . . . . . . . . . Guru 1 | . . . . 1 . . . . . . . . . . Scrapper 3 | . . . . 3 . . . . . . . . . . Decomposer 3 | . . . . . . . . . . . 3 . . . Tinkerer 1 | . . . . . . . . . . . 1 . . . Thug 1 | . . . . . . . . . . . . . . 1 Savage 1 | . . . . . . . . . . . . 1 . . Butcher 2 | . . . . 1 . . . . . . . . . 1 Best Kill Streak 15 | 4 4 . 2 4 5 6 1 3 4 8 1 15 5 2 Combat Bots Only 15 | . 3 . 2 4 5 6 . 1 2 6 1 15 5 2 Max Kills in Single Turn 5 | 2 2 . 1 3 3 3 1 1 2 5 2 5 2 1 Gunslinging . | . . . . . . . . . . . . . . . Exploded 5 | . 2 . 1 3 1 3 . . . 3 . 5 . . Melee 1 | . . . . . 1 . . . . 1 . . . . Uniques/NPCs Destroyed . | . . . . . . . . . . . . . . . Combat | -11 -10 -10 -10 -9 -6 -6 -6 -6 -6 -5 -5 -5 -5 -4 -------- Run | Yrd Mat Min Sub Scr Fac Ext Cet Arc Hub Fac Upp Upp War Pro Hostile Shots Fired 1147 | . 19 . 51 12 169 166 14 4 75 390 11 126 88 22 Missed 308 | . 5 . 15 2 54 55 5 2 5 104 3 26 22 10 Hits 839 | . 14 . 36 10 115 111 9 2 70 286 8 100 66 12 Melee 34 | . . . . . . . . . . 15 . 10 1 8 Projectile 805 | . 14 . 36 10 115 111 9 2 70 271 8 90 65 4 AOE 2 | . . . . . . . . . 1 1 . . . . Critical Strikes 51 | . . . . 2 5 3 2 . 8 14 1 11 2 3 Actively Blocked 7 | . . . . . . . . . . 1 1 5 . . Part Disruptions 1 | . . . . . 1 . . . . . . . . . Damage Taken 16202 | . 162 . 723 159 1416 1196 179 47 2136 6009 199 1975 1609 392 Core 1843 | . 16 . 141 52 168 222 8 . 207 615 20 216 128 50 Absorbed by Shields 246 | . . . . . . 131 56 . 27 . . . 32 . Reduced by Siege Mode 8 | . . . . . . . . . . . . 8 . . Redirected to Shielding 13 | . . . 4 . 9 . . . . . . . . . Ignored by Resistances 935 | . . . . . 157 109 113 . . 180 . 355 . 21 Regen/Repaired (Parts) 2775 | . 34 . . 444 344 . . . . 1035 . . 918 . Core Remaining (%) 48 | 100 . . . 16 . . . . 28 . . . . . Volleys Fired 504 | 6 29 . 34 16 60 60 16 26 12 144 20 61 11 9 Largest 4 | 2 2 . 2 2 3 3 3 4 4 3 3 3 1 3 Hottest 353 | 70 60 . 160 58 169 170 139 146 146 353 184 184 100 118 Shots Fired 1126 | 11 58 . 62 28 152 150 47 47 45 363 32 92 11 28 Gun 581 | 11 56 . 18 24 62 19 8 47 45 271 . . . 20 Cannon 516 | . . . 40 . 89 123 39 . . 86 32 88 11 8 Launcher 29 | . 2 . 4 4 1 8 . . . 6 . 4 . . Special . | . . . . . . . . . . . . . . . Kinetic 652 | 5 29 . 4 21 117 107 47 29 45 177 11 40 . 20 Thermal 337 | 6 . . 54 . 20 19 . 18 . 151 21 48 . . Explosive 14 | . 2 . 4 4 . . . . . . . 4 . . Electromagnetic 104 | . 27 . . 3 15 24 . . . 35 . . . . Entropic 19 | . . . . . . . . . . . . . 11 8 Robot Hit Streak 15 | 2 12 . 12 3 11 9 6 7 9 11 4 10 15 6 Robot Miss Streak 8 | 1 4 . 1 5 5 3 3 3 8 4 4 2 1 3 Penetration Max 2 | . . . . . 1 2 1 1 1 1 . . 1 . Secondary Targets 7 | . 1 . . . 2 . . . 2 2 . . . . Max Gunslinging Chain 1 | . 1 . . . 1 . . . 1 1 . . . . Shots Hit Robots 665 | 6 35 . 58 10 90 80 31 39 22 221 9 38 10 16 Core Hits 363 | 5 17 . 16 14 43 50 7 20 19 113 5 44 4 6 Critical Kills 19 | . . . 2 . . 3 . 1 4 8 . . 1 . Critical Parts Destroyed 32 | . . . . . 1 3 2 2 7 17 . . . . Critical Strikes 93 | . . . 2 . 4 19 5 3 11 29 2 3 11 4 Meltdown 2 | . . . 1 . . . . . . . . . 1 . Destroy 50 | . . . . . 1 8 2 3 11 25 . . . . Blast 24 | . . . . . 3 10 3 . . 3 2 3 . . Corrupt 2 | . . . . . . 1 . . . 1 . . . . Smash 1 | . . . 1 . . . . . . . . . . . Sunder 14 | . . . . . . . . . . . . . 10 4 Melee Attacks 195 | . . . 141 . 14 5 1 14 3 9 . . 7 1 Thermal 45 | . . . . . 14 5 1 5 3 9 . . 7 1 Impact 141 | . . . 141 . . . . . . . . . . . Slashing . | . . . . . . . . . . . . . . . Piercing . | . . . . . . . . . . . . . . . Sneak Attacks 19 | . . . 2 . 1 2 . 13 . 1 . . . . Combat Hostiles . | . . . . . . . . . . . . . . . Follow-up Attacks . | . . . . . . . . . . . . . . . Damage Inflicted 29280 | 86 817 . 1767 590 3570 3934 1290 1530 931 9579 423 2728 1336 699 Guns 9705 | 86 454 . 194 148 1198 186 206 971 931 5063 . . . 268 Cannons 10976 | . . . 772 . 1407 2533 1084 . . 1767 423 1300 1259 431 Explosions 6459 | . 350 . 311 442 557 935 . . . 2436 . 1428 . . Melee 2125 | . . . 490 . 408 280 . 559 . 311 . . 77 . Ramming 15 | . 13 . . . . . . . . 2 . . . . Kinetic 12660 | 49 199 . 54 148 2285 2140 1290 572 931 3391 284 1049 . 268 Thermal 9173 | 37 99 . 912 . 1020 621 . 958 . 5059 139 251 77 . Explosive 2432 | . 251 . 311 442 . . . . . . . 1428 . . Electromagnetic 2820 | . 255 . . . 265 1173 . . . 1127 . . . . Impact 490 | . . . 490 . . . . . . . . . . . Slashing . | . . . . . . . . . . . . . . . Piercing . | . . . . . . . . . . . . . . . Entropic 1690 | . . . . . . . . . . . . . 1259 431 Highest Corruption 31 | . . . . 2 4 . 13 12 31 6 6 6 7 7 Average Corruption 4 | . . . . 1 2 . 11 4 4 2 6 6 5 7 Corruption Purged 37 | . . . . . 7 . 5 21 . 4 . . . . Corruption Blocked . | . . . . . . . . . . . . . . . Effects 268 | . . . . . 20 . 5 19 11 55 65 75 3 15 Message Errors 59 | . . . . . 2 . 1 4 4 9 20 16 . 3 Matter Fused 75 | . . . . . 7 . 1 5 1 20 17 17 1 6 Heat Flow Errors 25 | . . . . . . . 1 2 2 9 4 7 . . Energy Discharges 23 | . . . . . 4 . 1 . . 4 7 5 1 1 Parts Rejected 3 | . . . . . . . . 1 1 . 1 . . . Parts Fused 2 | . . . . . 1 . . . . . . 1 . . Data Loss (minor) 38 | . . . . . 1 . 1 5 . 5 9 15 . 2 Data Loss (major) 15 | . . . . . . . . . 1 4 4 5 . 1 Misfires 17 | . . . . . 5 . . 1 . 3 2 4 . 2 Alerts 6 | . . . . . . . . . . 1 1 3 1 . Weapon Failures 5 | . . . . . . . . 1 2 . . 2 . . Overload Shots 1 | . . . . . . . . . . 1 . . . . Overflow Damage 1186 | . . . 34 . 245 240 3 111 . 305 57 126 65 . Projectiles 332 | . . . . . 54 40 3 . . 67 57 46 65 . Explosions 447 | . . . . . 129 . . . . 238 . 80 . . Melee 407 | . . . 34 . 62 200 . 111 . . . . . . Knockbacks 30 | . . . 2 . 10 7 1 . . 1 1 8 . . Impact 2 | . . . 2 . . . . . . . . . . . Kinetic 26 | . . . . . 10 7 1 . . 1 1 6 . . Secondary 2 | . . . . . . . . . . . . 2 . . Self-Inflicted Damage 1072 | . . . 6 . . 16 . . . 851 . 199 . . Shots 21 | . . . 1 . . 1 . . . 15 . 4 . . Rammed 1 | . . . . . . . . . . 1 . . . . Targets Rammed 3 | . 1 . . . . . . . . 2 . . . . Kicked 2 | . 1 . . . . . . . . 1 . . . . Crushed . | . . . . . . . . . . . . . . . Highest Temperature 376 | 27 63 . 168 97 162 150 262 250 265 376 225 348 156 62 Average Temperature 75 | 12 36 . 54 32 52 67 120 48 148 78 63 102 63 24 Received Heat Transfer 3069 | . 72 . 63 112 240 493 18 9 278 826 54 689 188 27 Effects 2 | . . . . . . . . . . 2 . . . . Interference 2 | . . . . . . . . . . 2 . . . . Siege Activations 1 | . . . . . . . . . . . . 1 . . Total Turns 12 | . . . . . . . . . . . . 12 . . Longest Duration 12 | . . . . . . . . . . . . 12 . . Martial Activations . | . . . . . . . . . . . . . . . Shielding Activations . | . . . . . . . . . . . . . . . Robots Disrupted 1 | . . . . . . . . . . 1 . . . . Combat Hostiles 1 | . . . . . . . . . . 1 . . . . Robots Corrupted 2 | . . . 2 . . . . . . . . . . . Combat Hostiles 1 | . . . 1 . . . . . . . . . . . Parts Fried 12 | . . . 1 . . 8 . . . 3 . . . . Impact Corruptions 4 | . . . 4 . . . . . . . . . . . Robots Melted 2 | . . . 1 . . . . . . . . . 1 . Combat Hostiles 2 | . . . 1 . . . . . . . . . 1 . Parts Melted 16 | . . . 3 2 1 1 . 5 . 2 . . 2 . Heat Transferred 9135 | 111 100 . 1211 . 1232 723 . 970 . 4261 148 259 120 . Parts Sabotaged 2 | . . . . . . . . . . 2 . . . . Parts Stolen . | . . . . . . . . . . . . . . . Parts Stripped . | . . . . . . . . . . . . . . . Power Chain Reactions 10 | . 2 . . . . 1 . . . 7 . . . . Alert | -11 -10 -10 -10 -9 -6 -6 -6 -6 -6 -5 -5 -5 -5 -4 ------- Run | Yrd Mat Min Sub Scr Fac Ext Cet Arc Hub Fac Upp Upp War Pro Maximum Alert Level 4 | . . . . . 2 4 3 2 3 4 . . . . Low Security (%) 46 | 100 100 100 . . 63 . . . 62 15 . . . . Level 1 21 | . . . . . 12 48 . 60 8 34 . . . . Level 2 21 | . . . . . 24 37 . 39 23 24 . . . . Level 3 4 | . . . . . . 2 100 . 5 8 . . . . Level 4 5 | . . . . . . 11 . . . 16 . . . . Level 5 . | . . . . . . . . . . . . . . . High Security . | . . . . . . . . . . . . . . . Max Security . | . . . . . . . . . . . . . . . Peak Influence 1476 | 15 110 39 . . 589 1476 965 506 744 1444 . . . . Initial 823 | . 3 39 . . . 288 823 358 68 320 . . . . Average 300 | 2 22 1 . . 178 520 867 359 255 534 . . . . Influence Increases 8423 | 20 388 . 20 . 1207 2020 382 300 1049 2444 40 338 185 30 Destroy 0b10 Robot/C 3560 | . 160 . 20 . 560 840 160 80 260 1020 40 300 100 20 Destroy 0b10 Robot/NC 290 | 20 25 . . . 40 30 10 40 20 90 . 15 . . Destroy Leader 616 | . 48 . . . 150 86 . . 80 222 . 20 . 10 Allied During Kill 1513 | . . . . . . 871 170 120 322 2 . 3 25 . Trap Triggered on 0b10 20 | . . . . . 20 . . . . . . . . . Successful Hack 415 | . 67 . . . 137 24 . . 16 171 . . . . Select Force Hacks 110 | . 60 . . . . . . . 50 . . . . . Disable Machine 720 | . . . . . 165 15 15 45 30 450 . . . . Anti-Garrison Action 200 | . . . . . . . . . 200 . . . . . Destroy Structure 634 | . 13 . . . 90 64 27 15 41 384 . . . . Partial Spotted 30 | . . . . . 15 . . . . 15 . . . . Lose Combat Pursuer 315 | . 15 . . . 30 90 . . 30 90 . . 60 . Influence Decreases 8423 | 15 292 101 20 . 618 1139 957 999 590 1685 1180 612 162 53 Entered New Map 2612 | . 2 62 . . . 301 647 537 128 335 524 53 . 23 Time Decay 4057 | 15 290 39 20 . 405 568 190 422 221 770 616 459 12 30 Lost Part 490 | . . . . . 30 60 . . 30 200 20 100 50 . Lost Ally 771 | . . . . . 140 60 120 40 211 80 20 . 100 . Purge Threat 493 | . . . . . 43 150 . . . 300 . . . . Squads Dispatched 49 | . 3 . . . 19 3 . . 5 18 . 1 . . Investigation 11 | . 3 . . . 3 . . . 3 2 . . . . Extermination 18 | . . . . . 10 . . . . 8 . . . . Reinforcement 11 | . . . . . 2 2 . . 2 5 . . . . Assault 6 | . . . . . 1 1 . . . 3 . 1 . . Garrison 3 | . . . . . 3 . . . . . . . . . Intercept . | . . . . . . . . . . . . . . . Searches Triggered . | . . . . . . . . . . . . . . . Construction Impeded 3 | . . . . . . 1 . . . 2 . . . . Haulers Reinforced 2 | . . . . . . . . . . 2 . . . . Active Scanning Responses . | . . . . . . . . . . . . . . . Cargo Convoy Interrupts . | . . . . . . . . . . . . . . . Stealth | -11 -10 -10 -10 -9 -6 -6 -6 -6 -6 -5 -5 -5 -5 -4 --------- Run | Yrd Mat Min Sub Scr Fac Ext Cet Arc Hub Fac Upp Upp War Pro Distress Signals 16 | . 2 . . . 1 2 1 . 4 4 . . 2 . Communications Jammed . | . . . . . . . . . . . . . . . Distress Signals . | . . . . . . . . . . . . . . . Times Spotted 333 | . 12 . 15 26 33 46 9 21 24 84 9 18 30 6 Peak Tracking Total 15 | . 3 . 2 8 4 7 5 2 12 7 6 12 15 5 Tactical Retreats 18 | . 1 . 1 2 2 3 . . 1 5 . . 3 . Traps | -11 -10 -10 -10 -9 -6 -6 -6 -6 -6 -5 -5 -5 -5 -4 ------- Run | Yrd Mat Min Sub Scr Fac Ext Cet Arc Hub Fac Upp Upp War Pro Traps Triggered 9 | . 1 . . . 1 3 . . 1 3 . . . . Indirectly . | . . . . . . . . . . . . . . . Trap Hack Attempts 41 | . . . . . 41 . . . . . . . . . Triggered . | . . . . . . . . . . . . . . . Disarmed . | . . . . . . . . . . . . . . . Reprogrammed 9 | . 5 . . . 4 . . . . . . . . . Reused 9 | . . . 4 2 2 . . . . . . . 1 . Traps Extracted 5 | . 4 . 1 . . . . . . . . . . . Installed 9 | . . . 5 2 . . . . . . . 1 1 . Triggered 3 | . . . . . 2 . . . . . . . 1 . Most Traps Carried 8 | . 4 4 5 3 2 2 2 2 2 2 2 8 8 1 Machines | -11 -10 -10 -10 -9 -6 -6 -6 -6 -6 -5 -5 -5 -5 -4 ---------- Run | Yrd Mat Min Sub Scr Fac Ext Cet Arc Hub Fac Upp Upp War Pro Machines Disabled 56 | . . . 1 2 11 2 1 3 2 30 2 1 1 . Max in Single Turn 11 | . . . 1 1 5 1 1 1 1 11 1 1 1 . Garrison Access 5 | . . . . . 2 . . . 2 1 . . . . Network Hub 1 | . . . . . . . . . 1 . . . . . Energy Cycler 1 | . . . . . . 1 . . . . . . . . Machines Repaired . | . . . . . . . . . . . . . . . Machines Dismantled . | . . . . . . . . . . . . . . . Machines Sabotaged 1 | . . . . . . . . . 1 . . . . . Overloaded Fab Kills . | . . . . . . . . . . . . . . . Hacking | -11 -10 -10 -10 -9 -6 -6 -6 -6 -6 -5 -5 -5 -5 -4 --------- Run | Yrd Mat Min Sub Scr Fac Ext Cet Arc Hub Fac Upp Upp War Pro Machines Accessed 92 | . 11 . 2 6 25 8 1 . 7 23 3 1 5 . Terminals 45 | . 8 . . . 10 8 1 . 5 12 1 . . . Fabricators 5 | . . . . . 4 . . . . 1 . . . . Repair Stations 6 | . 1 . . . 2 . . . . 3 . . . . Recycling Units 10 | . 2 . . . 5 . . . . 3 . . . . Scanalyzers 5 | . . . . . 2 . . . . 3 . . . . Garrison Access 5 | . . . . . 2 . . . 2 1 . . . . Total Hacks 409 | . 40 . 4 49 95 20 1 . 22 155 10 1 12 . Successful 243 | . 28 . 4 49 52 9 . . 9 69 10 1 12 . Failed 163 | . 11 . . . 43 10 1 . 13 85 . . . . Catastrophic 30 | . . . . . 4 3 1 . 2 20 . . . . Database Lockouts 3 | . 1 . . . . 1 . . . 1 . . . . Manual 166 | . 34 . . . 46 9 1 . 9 67 . . . . Terminals 211 | . 28 . . . 43 20 1 . 16 99 4 . . . Fabricators 14 | . . . . . 13 . . . . 1 . . . . Repair Stations 33 | . 4 . . . 14 . . . . 15 . . . . Recycling Units 37 | . 8 . . . 14 . . . . 15 . . . . Scanalyzers 32 | . . . . . 8 . . . . 24 . . . . Garrison Access 10 | . . . . . 3 . . . 6 1 . . . . Terminal Hacks 115 | . 5 . 4 49 6 7 . . 4 17 10 1 12 . Record 70 | . . . 3 48 . . . . . . 9 . 10 . Robot Schematic 1 | . . . . . . . . . . 1 . . . . Robot Analysis 10 | . 3 . . . 2 1 . . 1 3 . . . . Prototype ID Bank 3 | . . . . . . . . . . 3 . . . . Open Door 9 | . . . . . 1 4 . . . . 1 1 2 . Branch Access Points 1 | . . . . . . . . . . 1 . . . . Terminal Index 2 | . 1 . . . . . . . . 1 . . . . Scanalyzer Index 1 | . . . . . . . . . . 1 . . . . Garrison Index 1 | . . . . . . . . . . 1 . . . . Alert Level 2 | . . . . . . . . . 1 1 . . . . Unreport Threat 5 | . . . . . 2 1 . . . 2 . . . . Locate Traps 4 | . . . . . . 1 . . 1 2 . . . . Reprogram Traps 1 | . 1 . . . . . . . . . . . . . Recall Investigation 1 | . . . . . . . . . 1 . . . . . Recall Extermination 1 | . . . . . 1 . . . . . . . . . Hauler Manifests 1 | . . . . . . . . . . 1 . . . . Proto ID Catalog 2 | . . . 1 1 . . . . . . . . . . Fabricator Hacks 1 | . . . . . 1 . . . . . . . . . Network Status 1 | . . . . . 1 . . . . . . . . . Repair Station Hacks 17 | . 3 . . . 8 . . . . 6 . . . . Scan Component 11 | . 2 . . . 5 . . . . 4 . . . . Repair 6 | . 1 . . . 3 . . . . 2 . . . . Recycling Unit Hacks 10 | . 2 . . . 2 . . . . 6 . . . . Retrieve Matter 3 | . . . . . . . . . . 3 . . . . Retrieve Components 7 | . 2 . . . 2 . . . . 3 . . . . Scanalyzer 19 | . . . . . 4 . . . . 15 . . . . Insert Component 8 | . . . . . 2 . . . . 6 . . . . Analyze 6 | . . . . . 1 . . . . 5 . . . . Retrieve Study 5 | . . . . . 1 . . . . 4 . . . . Garrison Access Hacks 4 | . . . . . 2 . . . 1 1 . . . . Seal Access 4 | . . . . . 2 . . . 1 1 . . . . Unauthorized Hacks 77 | . 18 . . . 29 2 . . 4 24 . . . . Terminals 50 | . 12 . . . 15 2 . . 3 18 . . . . Track 3 | . . . . . 1 . . . . 2 . . . . Assimilate 5 | . 2 . . . . . . . . 3 . . . . Botnet 17 | . 4 . . . 6 1 . . 1 5 . . . . Operators 3 | . 1 . . . 1 . . . . 1 . . . . Skim 20 | . 5 . . . 7 1 . . . 7 . . . . Sabotage 2 | . . . . . . . . . 2 . . . . . Fabricators 8 | . . . . . 8 . . . . . . . . . Report 1 | . . . . . 1 . . . . . . . . . Liberate 4 | . . . . . 4 . . . . . . . . . Fabnet 2 | . . . . . 2 . . . . . . . . . Haulers 1 | . . . . . 1 . . . . . . . . . Repair Stations . | . . . . . . . . . . . . . . . Recycling Units 18 | . 6 . . . 6 . . . . 6 . . . . Monitor 2 | . . . . . 1 . . . . 1 . . . . Reject 6 | . 2 . . . 2 . . . . 2 . . . . Recyclers 2 | . . . . . 1 . . . . 1 . . . . Mask 6 | . 2 . . . 2 . . . . 2 . . . . Tunnel 2 | . 2 . . . . . . . . . . . . . Scanalyzers . | . . . . . . . . . . . . . . . Garrison Access 1 | . . . . . . . . . 1 . . . . . Jam 1 | . . . . . . . . . 1 . . . . . Data Cores Recovered . | . . . . . . . . . . . . . . . Used . | . . . . . . . . . . . . . . . Hacking Detections 64 | . 11 . . . 21 6 1 . 6 18 1 . . . Full Trace Events 3 | . . . . . 2 . . . . 1 . . . . Feedback Events . | . . . . . . . . . . . . . . . Feedback Blocked . | . . . . . . . . . . . . . . . Robot Schematics Acquired 1 | . . . . . . . . . . 1 . . . . Robots Built . | . . . . . . . . . . . . . . . Authchips . | . . . . . . . . . . . . . . . Time . | . . . . . . . . . . . . . . . Total Robot Build Rating . | . . . . . . . . . . . . . . . Part Schematics Acquired 4 | . . . . . . . . . . 4 . . . . Parts Built . | . . . . . . . . . . . . . . . Authchips . | . . . . . . . . . . . . . . . Time . | . . . . . . . . . . . . . . . Total Part Build Rating . | . . . . . . . . . . . . . . . Part Studies Acquired 5 | . . . . . 1 . . . . 4 . . . . Parts Repaired 6 | . 1 . . . 3 . . . . 2 . . . . Time 540 | . 26 . . . 352 . . . . 162 . . . . Parts Recycled . | . . . . . . . . . . . . . . . Recycled Matter . | . . . . . . . . . . . . . . . Retrieved Matter 125 | . . . . . . . . . . 125 . . . . Retrieved Components 43 | . 18 . . . 3 . . . . 22 . . . . Parts Scanalyzed 6 | . . . . . 1 . . . . 5 . . . . Part Schematics Acquired 4 | . . . . . . . . . . 4 . . . . Parts Damaged 2 | . . . . . 1 . . . . 1 . . . . Bothacking | -11 -10 -10 -10 -9 -6 -6 -6 -6 -6 -5 -5 -5 -5 -4 ------------ Run | Yrd Mat Min Sub Scr Fac Ext Cet Arc Hub Fac Upp Upp War Pro Used RIF Installer . | . . . . . . . . . . . . . . . Robots Hacked 5 | . . . . . . . . 2 . 2 1 . . . Non-combat 1 | . . . . . . . . 1 . . . . . . Combat 4 | . . . . . . . . 1 . 2 1 . . . Robot Hacks Applied 9 | . . . . . . . . 9 . . . . . . parse_system 3 | . . . . . . . . 3 . . . . . . no_distress 2 | . . . . . . . . 2 . . . . . . check_alert 4 | . . . . . . . . 4 . . . . . . Relay Couplers Released . | . . . . . . . . . . . . . . . Fabnet Peak Effective % 3 | . . . . . . . . . . 3 3 3 3 1 Autooverrided 3 | . . . . . . . . . . 2 1 . . . Robots Rewired 34 | . . . . . . 22 . . . 1 . 6 5 . Allies Hacked 2 | . . . . . . . . . . 1 . . 1 . Hacks Repelled . | . . . . . . . . . . . . . . . Allies | -11 -10 -10 -10 -9 -6 -6 -6 -6 -6 -5 -5 -5 -5 -4 -------- Run | Yrd Mat Min Sub Scr Fac Ext Cet Arc Hub Fac Upp Upp War Pro Total Allies 59 | . 1 . . . 8 28 5 . . 5 1 6 5 . Largest Group 19 | . 1 1 1 1 3 19 17 16 13 2 . 6 11 . Highest-Rated Group 899 | . 10 10 10 10 90 677 899 899 705 55 . 174 397 . Highest-Rated Ally 159 | . 10 10 10 10 41 159 159 134 96 49 . 29 49 . Total Orders 59 | . 1 2 4 4 . 6 7 7 2 2 . 18 5 1 STAY 33 | . 1 1 2 2 . 4 5 5 2 1 . 8 2 . FOLLOW 20 | . . 1 2 2 . 2 2 2 . 1 . 6 2 . RETURN 6 | . . . . . . . . . . . . 4 1 1 Ally Attacks 378 | . . . . . 45 148 62 17 61 11 . 7 27 . Total Damage 9654 | . . . . . 1090 3869 1195 321 2045 246 . 115 773 . Kills 63 | . . . . . 8 29 8 3 13 1 . 1 . . Allies Corrupted 9 | . . . . . 1 . . . 6 1 . . 1 . Allies Melted 5 | . . . . 4 . . . . . . . . 1 . Intel | -11 -10 -10 -10 -9 -6 -6 -6 -6 -6 -5 -5 -5 -5 -4 ------- Run | Yrd Mat Min Sub Scr Fac Ext Cet Arc Hub Fac Upp Upp War Pro Active Infowar (turns) 33003 | 7 1902 1355 8622 1205 5702 1678 387 1024 392 4272 2053 2545 1378 481 Optics 1456 | . . . . . . . 385 1024 47 . . . . . Sensors 17694 | . . . . . 5349 1678 2 . 389 3819 2053 2545 1378 481 Terrain 13313 | 7 1902 1355 8622 1205 . . . . . 222 . . . . Structural 7406 | . . . . . 3335 89 . . 359 3623 . . . . Machine Analysis 698 | . . . . . . . . . . 698 . . . . Robot Analysis Total 10 | . 3 . . . 2 1 . . 1 3 . . . . Derelict Logs Recovered 12 | . . 1 1 4 . . . . . . 2 3 . 1 Drone Launches 5 | . . . . . . . . . . . . 3 1 1 Drone Recoveries 5 | . . . . . . . . . . . . 3 1 1 Exploration | -11 -10 -10 -10 -9 -6 -6 -6 -6 -6 -5 -5 -5 -5 -4 ------------- Run | Yrd Mat Min Sub Scr Fac Ext Cet Arc Hub Fac Upp Upp War Pro Turns Passed 39206 | 94 1928 1355 10798 4588 5825 1706 387 1024 466 4434 2057 2673 1385 486 Spaces Moved 18462 | 50 1025 662 4539 3101 2339 815 169 366 274 1984 1031 1228 671 208 Core 9 | 9 . . . . . . . . . . . . . . Treads 3126 | . . . . . 19 . . . 9 993 . 1226 671 208 Legs 3837 | 41 1025 662 735 . . . . . . 341 1031 2 . . Wheels 11490 | . . . 3804 3101 2320 815 169 366 265 650 . . . . Hover . | . . . . . . . . . . . . . . . Flight . | . . . . . . . . . . . . . . . Fastest Speed 50 | 50 120 190 120 120 145 145 130 130 130 115 190 160 160 165 Average Speed 154 | 117 156 190 144 131 162 146 148 140 131 161 190 179 160 190 Slowest Speed 260 | 150 190 190 190 160 220 160 160 145 240 260 190 260 240 240 Overloaded Moves . | . . . . . . . . . . . . . . . Propulsion Burnouts . | . . . . . . . . . . . . . . . Robots Hopped . | . . . . . . . . . . . . . . . Potential Cave-ins 25 | . . . . . . 7 . . 1 2 . 15 . . Cave-ins Triggered . | . . . . . . . . . . . . . . . Exploration Rate (%) 72 | 4 98 97 94 93 51 64 73 99 46 51 96 97 90 37 Regions Visited 14 Branch Regions 11 Pre-discovered Areas 13 | . 3 . 1 5 1 . . . . 1 1 . . 1 Known Exits Taken 11 | . 1 . . 1 1 1 1 1 1 1 1 1 1 . Unknown Exits Taken 3 | 1 . 1 1 . . . . . . . . . . . Scrap Searched 20 | . . 2 7 5 . . . . . . 2 4 . . Spaces Dug 150 | . . . 28 . 19 27 . . 3 27 10 30 5 1 Terrain Destroyed 644 | . 13 . 50 5 94 64 18 12 20 217 17 102 12 20 Melee 46 | . . . 28 . 4 3 . . 3 2 . . 5 1 Projectile 340 | . . . 4 1 50 55 18 12 17 85 17 55 7 19 AOE 258 | . 13 . 18 4 40 6 . . . 130 . 47 . . Terrain Rammed . | . . . . . . . . . . . . . . . Walls Destroyed . | . . . . . . . . . . . . . . . Machines Disabled . | . . . . . . . . . . . . . . . Actions | -11 -10 -10 -10 -9 -6 -6 -6 -6 -6 -5 -5 -5 -5 -4 --------- Run | Yrd Mat Min Sub Scr Fac Ext Cet Arc Hub Fac Upp Upp War Pro Total 27813 | 70 1289 760 8460 3582 4207 1188 268 834 339 2869 1104 1613 957 273 Wait 7499 | . 208 97 3633 356 1606 139 48 406 25 557 24 189 170 41 Move 18449 | 49 1024 661 4538 3100 2338 814 168 365 273 1984 1030 1227 670 208 Hop . | . . . . . . . . . . . . . . . Pick Up 202 | 7 14 1 27 29 29 5 10 2 4 23 10 20 18 3 Fast Attach 93 | 7 . . 2 12 12 3 2 8 4 28 4 6 3 2 Attach 88 | . 1 . 6 6 13 6 5 2 4 19 4 10 8 4 Detach 20 | . . . . 1 2 1 . 1 1 8 . 3 3 . Swap 284 | 1 6 . 53 20 61 15 8 5 11 67 4 9 20 4 Drop 186 | . 6 1 21 40 31 5 10 5 2 22 8 14 20 1 Fire 504 | 6 29 . 34 16 60 60 16 26 12 144 20 61 11 9 Melee 195 | . . . 141 . 14 5 1 14 3 9 . . 7 1 Ram . | . . . . . . . . . . . . . . . Kick 1 | . 1 . . . . . . . . . . . . . Crush 1 | . . . . . . . . . . 1 . . . . Escape Stasis 24 | . . . . . . 24 . . . . . . . . Rewire 217 | . . . . . . 111 . . . 7 . 73 26 . Trap 50 | . . . 5 2 41 . . . . . . 1 1 . Miscellaneous . | . . . . . . . . . . . . . . . Route ------- -11/Scrapyard -10/Materials (discovered 5 exits: *Mat x3 / *Min / *Sub) -10/Mines (discovered 3 exits: *Mat x2 / *Sub) -10/Subcaves (discovered 3 exits: [*Mat x2] / *Scr) -9/Scraptown (discovered 2 exits: *Fac x2) -6/Factory (discovered 8 exits: *Fac x4 / *Low x2 / *Ext x2) -6/Extension (discovered 3 exits: *Fac x2 / *Cet) -6/Cetus (discovered 2 exits: *Fac / *Arc) -6/Archives (discovered 3 exits: *Fac / *Hub x2) -6/Hub_04(d) (discovered 2 exits: *Fac x2) -5/Factory (discovered 3 exits: *Fac / *Upp x2) -5/Upper Caves -5/Upper Caves (discovered 2 exits: *Fac / *War) -5/Warlord -4/Proximity Caves (discovered 1 exit: Fac) History --------- Turn | Location | Event 20 | -11/Scrapyard | Discovered new exit (range 16) 95 | -11/Scrapyard | Entered Materials 96 | -10/Materials | Met a group of wandering Federalists 195 | -10/Materials | Discovered new exit (range 14) 312 | -10/Materials | Build established: Mutant 366 | -10/Materials | Discovered new exit (range 12) 638 | -10/Materials | Discovered new exit (range 11) 735 | -10/Materials | Discovered new exit (range 16) 758 | -10/Materials | Central database locked down 780 | -10/Materials | Identified exit to Mines 780 | -10/Materials | Identified exit to Materials 840 | -10/Materials | Learned Storage trap positions 892 | -10/Materials | Learned Storage security intel 986 | -10/Materials | Learned Storage garrison access intel 1046 | -10/Materials | Learned location of 1 exit from Storage 1438 | -10/Materials | Repaired EM Pulse Gun 2023 | -10/Materials | Entered Mines 2023 | -10/Mines | Accompanied by 1 ally 2083 | -10/Mines | Discovered exit to Materials (range 15) 2140 | -10/Mines | Found a Scrap Suit stashed away for nefarious purposes 2273 | -10/Mines | YI-UF0 nonchalantly dropped a Grenade Launcher on the ground 2606 | -10/Mines | Learned Materials interactive machine intel 2935 | -10/Mines | Discovered new exit (range 10) 3041 | -10/Mines | Discovered exit to Materials (range 9) 3378 | -10/Mines | Entered Subcaves 3378 | -10/Subcaves | Accompanied by 1 ally 3379 | -10/Subcaves | Approached by a straggling Scientist 3532 | -10/Subcaves | Shifting Twisted Machinery released Sub. Beam Cannon 3617 | -10/Subcaves | Learned 2 Materials zone layouts 3991 | -10/Subcaves | Ambushed by angry Subdweller bent on revenge 4077 | -10/Subcaves | Visited Clippyterm 4082 | -10/Subcaves | Learned location of Section 7 (-3) 4128 | -10/Subcaves | Scientist uncovered a shortcut to Scraptown 5441 | -10/Subcaves | A swath of the cavern ceiling suddenly collapsed 6094 | -10/Subcaves | Shifting Twisted Machinery released Mak. Shrapnel Gun 6115 | -10/Subcaves | Shifting Twisted Machinery released Spk. Treads 6504 | -10/Subcaves | Discovered new exit (range 7) 6693 | -10/Subcaves | Core integrity fell below 50% 7013 | -10/Subcaves | Discovered new exit (range 4) 7625 | -10/Subcaves | Shifting Twisted Machinery released Mak. System Restoration Module 7879 | -10/Subcaves | Shifting Twisted Machinery released Battle Cannon 8104 | -10/Subcaves | Visited 4L-MR0's lab 8118 | -10/Subcaves | Found Meta Core 8801 | -10/Subcaves | A swath of the cavern ceiling suddenly collapsed 14176 | -10/Subcaves | Entered Scraptown 14176 | -9/Scraptown | Accompanied by 1 ally 14314 | -9/Scraptown | Heard Great Nut preacher, LISTEN AND RECITE! 14365 | -9/Scraptown | Visited Cyclists 14436 | -9/Scraptown | Scanned Subdweller tech in exchange for log data 14446 | -9/Scraptown | Learned Research trap positions 14448 | -9/Scraptown | Learned Research emergency access door positions 14449 | -9/Scraptown | Learned Research stockpile data 14470 | -9/Scraptown | Discovered new exit (range 7) 14854 | -9/Scraptown | Visited Junk Repository 14919 | -9/Scraptown | Visited Red Mages 14961 | -9/Scraptown | Visited Symbiants 14994 | -9/Scraptown | Visited CR-KLE's Repair Center 15029 | -9/Scraptown | Visited Supply Room 15471 | -9/Scraptown | CR-KLE repaired 7 parts 16063 | -9/Scraptown | Visited UFD Registry 16063 | -9/Scraptown | Registered with UFD as "Steelgrid" 16113 | -9/Scraptown | Visited Cartography Club 16149 | -9/Scraptown | Found Surveybot 17 Chip 16311 | -9/Scraptown | Learned location of Lower Caves (-7) 16311 | -9/Scraptown | Learned location of Upper Caves (-5) 16311 | -9/Scraptown | Learned location of Cetus (-6) 16311 | -9/Scraptown | Learned location of Armory (-3) 16311 | -9/Scraptown | Learned 16 Factory zone layouts 16311 | -9/Scraptown | Learned 4 Storage zone layouts 16311 | -9/Scraptown | Learned 16 Lower Caves zone layouts 16311 | -9/Scraptown | Learned 4 Recycling zone layouts 16311 | -9/Scraptown | Learned 12 Proximity Caves zone layouts 16311 | -9/Scraptown | Learned 24 Upper Caves zone layouts 16311 | -9/Scraptown | Learned 20 Proximity Caves zone layouts 16311 | -9/Scraptown | Learned location of 1 exit from Upper Caves 16311 | -9/Scraptown | Learned location of 3 exits from Proximity Caves 16311 | -9/Scraptown | Identified exit to Factory 16351 | -9/Scraptown | Found Deep Structural Scanner 16406 | -9/Scraptown | Visited Research Penetration Think Tank 16453 | -9/Scraptown | Visited Observation Area 16492 | -9/Scraptown | Visited Scrap Suit Storage 16508 | -9/Scraptown | Visited Chapter 10 16542 | -9/Scraptown | Visited Infowarlord's Domain 16558 | -9/Scraptown | Visited A0-MCA Data Center 16575 | -9/Scraptown | Visited Scrapoid Pod Storage 16642 | -9/Scraptown | Visited Science Guys 16877 | -9/Scraptown | Found Exp. Sensor Array 17041 | -9/Scraptown | Entered Cyclist Reading Room 17637 | -9/Scraptown | Warned about trapping Scraptown 17947 | -9/Scraptown | Met Optimus 17947 | -9/Scraptown | Accepted into 0bPrime 18347 | -9/Scraptown | Civil war broke out across Scraptown 18352 | -9/Scraptown | Found Thermal Lance 18400 | -9/Scraptown | Lost 5 allies 18473 | -9/Scraptown | Found Prototype Processor 18537 | -9/Scraptown | Optimus destroyed in the chaos of civil war 18565 | -9/Scraptown | Core integrity fell below 20% 18764 | -9/Scraptown | Entered Factory 18764 | -6/Factory | Accompanied by 1 ally 18764 | -6/Factory | Evolved 8 slots: Utility x7, Weapon x1 18765 | -6/Factory | Identified exit to Lower Caves 18766 | -6/Factory | Identified exit to Factory 18766 | -6/Factory | Identified exit to Extension 19291 | -6/Factory | Identified Expert System 19746 | -6/Factory | Found Hvy. Reactive Plating 20167 | -6/Factory | Build established: Scavenger-Skirmisher 20355 | -6/Factory | Garrison activated, responded to threat 20831 | -6/Factory | Learned location of 2 exits from Archives 20966 | -6/Factory | Loaded intel: 76 trap records 20981 | -6/Factory | Learned Extension machine intel 21465 | -6/Factory | Build established: Hacker-Skirmisher 22359 | -6/Factory | Build established: Skirmisher 22985 | -6/Factory | Repaired Graviton Reactor 23094 | -6/Factory | Repaired Helical Railgun 23234 | -6/Factory | Repaired Broken Helical Railgun? 23240 | -6/Factory | Build established: Hacker-Skirmisher 23664 | -6/Factory | First assault squad dispatched 24366 | -6/Factory | Build established: Skirmisher 24589 | -6/Factory | Entered Extension 24589 | -6/Extension | Accompanied by 1 ally 24591 | -6/Extension | Loaded intel: 26 machine locations 24655 | -6/Extension | Rescued a captive Derelict 24656 | -6/Extension | Rescued a captive Derelict 24920 | -6/Extension | Rescued a captive Derelict 25527 | -6/Extension | Lost 3 allies 25561 | -6/Extension | Rescued A7 25656 | -6/Extension | Rescued a captive Derelict 25659 | -6/Extension | Rescued a captive Derelict 25736 | -6/Extension | Central database locked down 25873 | -6/Extension | Build established: Commander-Skirmisher 25989 | -6/Extension | First assault squad dispatched 26042 | -6/Extension | Energy Cycler disabled 26073 | -6/Extension | Lost 5 allies 26081 | -6/Extension | Lost 3 parts (1u2w) 26232 | -6/Extension | Discovered new exit (range 6) 26286 | -6/Extension | Identified exit to Cetus 26295 | -6/Extension | Entered Cetus 26295 | -6/Cetus | Accompanied by 17 allies (A7) 26300 | -6/Cetus | Acquired a Cetus Manufacturing Module code from A7 26316 | -6/Cetus | Spotted Cetus Guard 26317 | -6/Cetus | Spotted Cetus Guard 26321 | -6/Cetus | Spotted Cetus Guard 26330 | -6/Cetus | Spotted Cetus Guard 26338 | -6/Cetus | Allies destroyed Cetus Guard 26339 | -6/Cetus | Allies destroyed Cetus Guard 26350 | -6/Cetus | Allies destroyed Cetus Guard 26359 | -6/Cetus | Allies destroyed Cetus Guard 26380 | -6/Cetus | Lost 5 allies 26402 | -6/Cetus | Attached Meta Core, gained temporary slots: Propulsion, Utility, Weapon 26443 | -6/Cetus | Started Cetus Manufacturing Module 26464 | -6/Cetus | Escorted A7 to Cetus Mainframe 26468 | -6/Cetus | Manufactured an Enhanced Grunt 26475 | -6/Cetus | Discovered new exit (range 21) 26493 | -6/Cetus | Manufactured an Enhanced Grunt 26518 | -6/Cetus | Manufactured an Enhanced Grunt 26519 | -6/Cetus | Spotted Cetus Guard 26521 | -6/Cetus | Spotted Cetus Guard 26521 | -6/Cetus | Spotted Cetus Guard 26525 | -6/Cetus | Spotted Cetus Guard 26528 | -6/Cetus | Allies destroyed Cetus Guard 26532 | -6/Cetus | Discovered exit to Factory (range 21) 26543 | -6/Cetus | Manufactured an Enhanced Grunt 26546 | -6/Cetus | Allies destroyed Cetus Guard 26547 | -6/Cetus | Allies destroyed Cetus Guard 26550 | -6/Cetus | Allies destroyed Cetus Guard 26568 | -6/Cetus | Manufactured an Enhanced Grunt 26579 | -6/Cetus | Met Revision 17 26591 | -6/Cetus | System corruption reached 10% 26644 | -6/Cetus | Identified exit to Archives 26682 | -6/Cetus | Entered Archives 26682 | -6/Archives | Accompanied by 16 allies (A7) 26683 | -6/Archives | Identified exit to Hub_04(d) 26687 | -6/Archives | Received a hacking code to weaken MAIN.C 26772 | -6/Archives | Discovered exit to Hub_04(d) (range 22) 26841 | -6/Archives | Expert System configures itself against Operator targets 26866 | -6/Archives | Build established: Commander-Tank 27033 | -6/Archives | Unable to access archive contents 27331 | -6/Archives | Unable to access archive contents 27706 | -6/Archives | Entered Hub_04(d) 27706 | -6/Hub_04(d) | Accompanied by 13 allies 27821 | -6/Hub_04(d) | Discovered exit to Factory (range 12) 27989 | -6/Hub_04(d) | Discovered exit to Factory (range 14) 28088 | -6/Hub_04(d) | Network Hub disabled 28096 | -6/Hub_04(d) | Spotted Lightning 28096 | -6/Hub_04(d) | Spotted Lightning 28096 | -6/Hub_04(d) | Spotted Lightning 28111 | -6/Hub_04(d) | Spotted Lightning 28116 | -6/Hub_04(d) | Spotted Lightning 28116 | -6/Hub_04(d) | Spotted Lightning 28119 | -6/Hub_04(d) | Core integrity fell below 50% 28120 | -6/Hub_04(d) | Destroyed Lightning 28151 | -6/Hub_04(d) | Lost 9 allies 28168 | -6/Hub_04(d) | Lost 3 parts (1u2w) 28172 | -6/Hub_04(d) | System corruption reached 30% 28172 | -6/Hub_04(d) | Entered Factory 28172 | -5/Factory | Evolved 2 slots: Propulsion x1, Utility x1 28173 | -5/Factory | Identified exit to Upper Caves 28275 | -5/Factory | Repaired Centrium Medium Armor Plating 28480 | -5/Factory | Repaired Centrium Medium Armor Plating 28539 | -5/Factory | Build established: Scavenger-Assassin 28842 | -5/Factory | Build established: Scavenger-Tank 29436 | -5/Factory | Build established: Scavenger-Assassin 30104 | -5/Factory | Build established: Hacker-Tank 31172 | -5/Factory | First assault squad dispatched 31321 | -5/Factory | Learned Extension stockpile data 31395 | -5/Factory | Learned Armory security intel 31413 | -5/Factory | Central database locked down 31457 | -5/Factory | Learned 2 Armory zone layouts 31541 | -5/Factory | Build established: Scavenger-Skirmisher 31547 | -5/Factory | Learned Research stockpile data 31596 | -5/Factory | Learned location of Upper Caves (-4) 31657 | -5/Factory | Learned location of 1 exit from Extension 31667 | -5/Factory | Lost 7 parts (2n2u3w) 31780 | -5/Factory | Lost 4 parts (2n1u1w) 32464 | -5/Factory | Discovered new exit (range 6) 32479 | -5/Factory | Build established: Scavenger-Assassin 32578 | -5/Factory | Core integrity fell below 50% 32606 | -5/Factory | Entered Upper Caves 32607 | -5/Upper Caves | Identified exit to Upper Caves 32608 | -5/Upper Caves | Attracted the attention of an 0b10 checkpoint 32627 | -5/Upper Caves | Lost 3 parts (2u1w) 32743 | -5/Upper Caves | Entered an active Warlord outpost 32764 | -5/Upper Caves | Learned location of 1 exit from Research 32764 | -5/Upper Caves | Learned Factory terminal intel 32814 | -5/Upper Caves | Learned location of 2 exits from Lower Caves 32822 | -5/Upper Caves | Attracted the attention of an 0b10 base 32902 | -5/Upper Caves | Learned Factory terminal intel 32927 | -5/Upper Caves | Build established: Scavenger-Tank 34663 | -5/Upper Caves | Entered another Upper Caves area 34664 | -5/Upper Caves | Identified exit to Factory 34665 | -5/Upper Caves | Identified exit to Warlord 34669 | -5/Upper Caves | Attracted the attention of an 0b10 outpost 34717 | -5/Upper Caves | Core integrity fell below 20% 34748 | -5/Upper Caves | Lost 10 parts (1p4n4u1w) 34750 | -5/Upper Caves | Destroyed 15 combat bots 35273 | -5/Upper Caves | Encountered a Warlord checkpoint 35304 | -5/Upper Caves | Build established: Derelict-Gunner 35405 | -5/Upper Caves | Learned Factory trap positions 35408 | -5/Upper Caves | Learned Factory terminal intel 36295 | -5/Upper Caves | Found Prototype Special Weapon 36296 | -5/Upper Caves | Identified Mak. Laser Shovel 36930 | -5/Upper Caves | Build established: Gunner 37236 | -5/Upper Caves | Attacked by a delusional Derelict stockpiling Unaware 37336 | -5/Upper Caves | Entered Warlord 37336 | -5/Warlord | Accompanied by 6 allies 37391 | -5/Warlord | System corruption cleaned by Quarantine Array 37396 | -5/Warlord | System corruption cleaned by Quarantine Array 37801 | -5/Warlord | Build established: Commander-Tank 38041 | -5/Warlord | Found Prototype Reactor 38049 | -5/Warlord | Found Prototype Device 38050 | -5/Warlord | Identified Exp. Phase Shifter 38060 | -5/Warlord | Found Prototype Hackware 38066 | -5/Warlord | Found Prototype Processor 38070 | -5/Warlord | Found Prototype Device 38072 | -5/Warlord | Identified Thermal Barrier 38141 | -5/Warlord | Rebuked by Warlord 38166 | -5/Warlord | Warlord's base attacked by MAIN.C 38249 | -5/Warlord | Found Prototype Energy Cannon 38252 | -5/Warlord | Found Prototype Energy Cannon 38257 | -5/Warlord | Found Prototype Energy Cannon 38260 | -5/Warlord | Found Prototype Energy Cannon 38466 | -5/Warlord | Opened side exit 38516 | -5/Warlord | Warlord forces counterattacked 38548 | -5/Warlord | Build established: Commander-Mutant 38619 | -5/Warlord | Spotted Executioner 38623 | -5/Warlord | Spotted Striker 38628 | -5/Warlord | Spotted Executioner 38633 | -5/Warlord | Identified Vortex Driver (x2) 38643 | -5/Warlord | Spotted Executioner 38645 | -5/Warlord | Destroyed Executioner 38645 | -5/Warlord | Destroyed Striker 38676 | -5/Warlord | Destroyed Executioner 38682 | -5/Warlord | Found Prototype Processor 38686 | -5/Warlord | P-70 Sage assimilated allied 6T-9SD(l) 38686 | -5/Warlord | P-80 Master assimilated allied GC-1QZ(l) 38690 | -5/Warlord | Lost 20 allies 38692 | -5/Warlord | Discovered new exit (range 14) 38695 | -5/Warlord | Spotted Executioner 38719 | -5/Warlord | Identified exit to Proximity Caves 38721 | -5/Warlord | Entered Proximity Caves 38723 | -4/Proximity Caves | Identified Vortex Cannon (x2) 38745 | -4/Proximity Caves | Lost 5 allies 38749 | -4/Proximity Caves | Lost 3 parts (1n1u1w) 39032 | -4/Proximity Caves | Build established: Scavenger-Tank 39207 | -4/Proximity Caves | Destroyed by EM-PTY(l) with Phasing Sabre Last Messages --------------- 39144_ FTNOHK>UKSMNPV9I7P=DJVE